Cogmind - Beta 15 @@@ ROGUE MODE // 2025.05.31 @ 22:52:58 Player: Elias Result: Destroyed by Y-45 Defender with Heavy Assault Rifle Performance ------------- Evolutions (0) 0 Regions Visited (2) 400 Robots Destroyed (26) 130 Value Destroyed (483) 483 Prototype IDs (0) 0 Alien Tech Used (0) 0 Bonus (0) 0 TOTAL SCORE: 1013 Bonus ------- None Cogmind --------- Core Integrity 0/250 Matter 290/300 Energy 156/250 System Corruption 3% Temperature Warm (124) Movement Walking (260) Ox2 Location -10/Mines Parts ------- > --- POWER (1) -------- Ion Engine > --- PROPULSION (2) --- Aluminum Leg > --- UTILITY (2) ------ Large Storage Unit Signal Interpreter > --- WEAPON (2) ------- Small Laser Light Assault Rifle > --- INVENTORY (15) --- Light Ion Engine Light Treads Aluminum Leg Improved Heat Sink Sensor Array Light Armor Plating Light Assault Rifle Mining Claw Peak State ------------ > --- POWER ------------ Ion Engine > --- PROPULSION ------- Aluminum Leg Aluminum Leg > --- UTILITY ---------- Large Storage Unit Signal Interpreter > --- WEAPON ----------- Medium Laser Medium Laser > --- INVENTORY -------- Ion Engine Ion Engine Light Treads Aluminum Leg Aluminum Leg Aluminum Leg Sensor Array Light Armor Plating Medium Laser Mining Claw [Rating: 8] Favorites ----------- Power Ion Engine Engine Ion Engine Propulsion Aluminum Leg Leg Aluminum Leg Utility Signal Interpreter Device Seismic Detector Storage Large Storage Unit Processor Signal Interpreter Weapon Medium Laser Energy Gun Medium Laser Ballistic Gun Light Assault Rifle Special Weapon Mining Laser Slashing Weapon Mining Claw Build | -11 -10 -10 ------- Run | Yrd Mat Min Slots Evolved . | . . . Power . | . . . Propulsion . | . . . Utility . | . . . Weapon . | . . . Parts Attached 21 | 6 12 3 Power 4 | 1 2 1 Engine 4 | 1 2 1 Core . | . . . Reactor . | . . . Propulsion 6 | 2 4 . Treads . | . . . Leg 6 | 2 4 . Wheel . | . . . Hover . | . . . Flight . | . . . Utility 4 | 1 3 . Device 1 | . 1 . Storage 2 | 1 1 . Processor 1 | . 1 . Hackware . | . . . Protection . | . . . Artifact . | . . . Weapon 7 | 2 3 2 Energy Gun 4 | 2 1 1 Energy Cannon . | . . . Ballistic Gun 1 | . . 1 Ballistic Cannon . | . . . Launcher . | . . . Special Weapon 1 | . 1 . Impact Weapon . | . . . Slashing Weapon 1 | . 1 . Piercing Weapon . | . . . Special Melee Weapon . | . . . Unidentified Prototypes . | . . . Parts Lost 8 | . 5 3 Power 2 | . 1 1 Propulsion 3 | . 2 1 Utility . | . . . Weapon 3 | . 2 1 Highest Loss Streak 5 | . 5 3 To Critical Strikes . | . . . Average Backups 7 | 3 7 8 Power 1 | 1 1 1 Propulsion 2 | . 2 2 Utility 2 | . 1 3 Weapon 1 | . 1 1 Tool/Special . | . . . Unused Backups 5 | . . 5 Power 1 | . . 1 Propulsion 1 | . . 1 Utility 3 | . . 3 Weapon . | . . . Tool/Special . | . . . Average Slot Usage (%) 97 | . 96 99 Engine 13 | . 13 14 Leg 26 | . 26 27 Device 3 | . 4 . Storage 14 | . 14 14 Processor 10 | . 9 14 Energy Gun 24 | . 26 16 Slashing Weapon 2 | . . 10 Peak Build Rating 8 | 6 8 8 Average Rating 7 | 4 7 7 On Entrance 4 | . 6 8 Naked Turns . | . . . Heaviest Build 29 | 14 29 29 Greatest Support 20 | 20 20 20 Greatest Overweight (x) 8 | . 8 1 Average Overweight (x) . | . . 1 Largest Inventory Capacity 15 | 8 15 15 Average Capacity 12 | 7 11 15 Most Carried 11 | 5 11 10 Average Carried 7 | 3 7 8 Final Capacity 15 | 8 15 15 Final Carried 8 | 5 8 8 Class Distribution -------------------- 100% | Mutant Dominant Class ---------------- Mutant | -10/Materials Mutant | -10/Mines Resources | -11 -10 -10 ----------- Run | Yrd Mat Min Matter Collected 450 | 228 186 36 Remotely . | . . . Salvage Created 857 | 35 760 62 Parts 42 | 4 29 9 Haulers Intercepted 2 | . 2 . Recyclers Shooed 2 | . 2 . Parts Field Recycled . | . . . Retrieved Matter . | . . . Parts Self-Destructed . | . . . Prevented . | . . . Kills | -11 -10 -10 ------- Run | Yrd Mat Min Combat Hostiles Destroyed 14 | . 11 3 Guns 14 | . 11 3 Classes Destroyed 8 | 1 6 1 Worker 1 | . 1 . Builder 1 | . . 1 Tunneler 3 | 2 1 . Hauler 2 | . 2 . Recycler 2 | . 2 . Watcher 3 | . 3 . Swarmer 5 | . 2 3 Grunt 9 | . 9 . Best Kill Streak 3 | 2 3 3 Combat Bots Only 3 | . 2 3 Max Kills in Single Turn 1 | 1 1 1 Gunslinging . | . . . Exploded . | . . . Melee . | . . . Uniques/NPCs Destroyed . | . . . Combat | -11 -10 -10 -------- Run | Yrd Mat Min Hostile Shots Fired 130 | . 102 28 Missed 34 | . 27 7 Hits 96 | . 75 21 Projectile 96 | . 75 21 Damage Taken 1044 | . 798 246 Core 261 | . 171 90 Absorbed by Shields . | . . . Core Remaining (%) 100 | 100 . . Volleys Fired 106 | 8 89 9 Largest 2 | 2 2 2 Hottest 100 | 100 100 90 Shots Fired 194 | 16 163 15 Gun 193 | 16 162 15 Cannon . | . . . Launcher . | . . . Special 1 | . 1 . Kinetic . | . . . Thermal 194 | 16 163 15 Explosive . | . . . Electromagnetic . | . . . Robot Hit Streak 10 | 3 10 10 Robot Miss Streak 4 | 3 4 1 Penetration Max . | . . . Secondary Targets . | . . . Shots Hit Robots 114 | 9 93 12 Core Hits 43 | 2 37 4 Critical Kills . | . . . Critical Parts Destroyed . | . . . Critical Strikes 11 | . 11 . Burn 11 | . 11 . Melee Attacks 4 | . 3 1 Impact . | . . . Slashing 4 | . 3 1 Piercing . | . . . Sneak Attacks 2 | . 1 1 Combat Hostiles . | . . . Follow-up Attacks . | . . . Damage Inflicted 1665 | 111 1379 175 Guns 1571 | 111 1329 131 Cannons . | . . . Explosions . | . . . Melee 90 | . 46 44 Ramming 4 | . 4 . Kinetic . | . . . Thermal 1571 | 111 1329 131 Explosive . | . . . Electromagnetic . | . . . Impact . | . . . Slashing 90 | . 46 44 Piercing . | . . . Highest Corruption 3 | . 3 3 Average Corruption 2 | . 2 3 Corruption Purged . | . . . Corruption Blocked . | . . . Effects 19 | . 14 5 Message Errors 4 | . 3 1 Matter Fused 2 | . 1 1 Heat Flow Errors 3 | . 2 1 Energy Discharges 6 | . 5 1 Data Loss (minor) 2 | . 2 . Data Loss (major) 1 | . . 1 Weapon Failures 1 | . 1 . Overload Shots . | . . . Overflow Damage 18 | . 18 . Projectiles . | . . . Explosions . | . . . Melee 18 | . 18 . Knockbacks . | . . . Impact . | . . . Kinetic . | . . . Secondary . | . . . Self-Inflicted Damage . | . . . Shots . | . . . Rammed . | . . . Targets Rammed 1 | . 1 . Kicked 1 | . 1 . Crushed . | . . . Highest Temperature 389 | 156 389 273 Average Temperature 136 | 65 148 81 Received Heat Transfer 405 | . 342 63 Effects 2 | . 2 . Energy Bleed 1 | . 1 . Damage (minor) 1 | . 1 . Siege Activations . | . . . Martial Activations . | . . . Shielding Activations . | . . . Robots Disrupted . | . . . Combat Hostiles . | . . . Robots Corrupted . | . . . Combat Hostiles . | . . . Parts Fried . | . . . Impact Corruptions . | . . . Robots Melted . | . . . Combat Hostiles . | . . . Parts Melted 13 | 1 11 1 Heat Transferred 5416 | 333 4736 347 Parts Sabotaged . | . . . Parts Stolen . | . . . Parts Stripped . | . . . Power Chain Reactions . | . . . Alert | -11 -10 -10 ------- Run | Yrd Mat Min Maximum Alert Level . | . . . Low Security (%) 100 | 100 100 100 Level 1 . | . . . Level 2 . | . . . Level 3 . | . . . Level 4 . | . . . Level 5 . | . . . High Security . | . . . Max Security . | . . . Peak Influence 82 | 5 82 70 Initial 12 | . . 12 Average 19 | 1 23 10 Influence Increases 430 | 10 345 75 Destroy 0b10 Robot/C 280 | . 220 60 Destroy 0b10 Robot/NC 60 | 10 45 5 Destroy Leader 50 | . 40 10 Successful Hack 7 | . 7 . Disable Machine 15 | . 15 . Destroy Structure 3 | . 3 . Lose Combat Pursuer 15 | . 15 . Influence Decreases 420 | 10 314 96 Entered New Map 19 | . . 19 Time Decay 321 | 10 264 47 Lost Part 80 | . 50 30 Squads Dispatched 3 | . 3 . Investigation 2 | . 2 . Extermination . | . . . Reinforcement 1 | . 1 . Assault . | . . . Garrison . | . . . Intercept . | . . . Searches Triggered . | . . . Construction Impeded . | . . . Haulers Reinforced . | . . . Active Scanning Responses . | . . . Cargo Convoy Interrupts . | . . . Stealth | -11 -10 -10 --------- Run | Yrd Mat Min Distress Signals 1 | . 1 . Communications Jammed . | . . . Distress Signals . | . . . Times Spotted 28 | . 23 5 Peak Tracking Total 5 | . 5 3 Tactical Retreats 1 | . 1 . Traps | -11 -10 -10 ------- Run | Yrd Mat Min Traps Triggered 4 | . 4 . Indirectly . | . . . Trap Hack Attempts . | . . . Triggered . | . . . Disarmed . | . . . Reprogrammed . | . . . Reused . | . . . Traps Extracted . | . . . Installed . | . . . Triggered . | . . . Machines | -11 -10 -10 ---------- Run | Yrd Mat Min Machines Disabled 1 | . 1 . Max in Single Turn 1 | . 1 . Machines Repaired . | . . . Machines Dismantled . | . . . Machines Sabotaged . | . . . Overloaded Fab Kills . | . . . Hacking | -11 -10 -10 --------- Run | Yrd Mat Min Machines Accessed 5 | . 5 . Terminals 4 | . 4 . Fabricators . | . . . Repair Stations . | . . . Recycling Units 1 | . 1 . Scanalyzers . | . . . Garrison Access . | . . . Total Hacks 14 | . 14 . Successful 6 | . 6 . Failed 8 | . 8 . Catastrophic . | . . . Database Lockouts . | . . . Manual . | . . . Terminals 11 | . 11 . Fabricators . | . . . Repair Stations . | . . . Recycling Units 3 | . 3 . Scanalyzers . | . . . Garrison Access . | . . . Terminal Hacks 4 | . 4 . Record 2 | . 2 . Branch Access Points 1 | . 1 . Zone Layout 1 | . 1 . Fabricator Hacks . | . . . Repair Station Hacks . | . . . Recycling Unit Hacks 2 | . 2 . Process 1 | . 1 . Report Inventory 1 | . 1 . Scanalyzer . | . . . Garrison Access Hacks . | . . . Unauthorized Hacks . | . . . Terminals . | . . . Fabricators . | . . . Repair Stations . | . . . Recycling Units . | . . . Scanalyzers . | . . . Garrison Access . | . . . Data Cores Recovered . | . . . Used . | . . . Hacking Detections 5 | . 5 . Full Trace Events 4 | . 4 . Feedback Events . | . . . Feedback Blocked . | . . . Robot Schematics Acquired . | . . . Robots Built . | . . . Authchips . | . . . Time . | . . . Total Robot Build Rating . | . . . Part Schematics Acquired . | . . . Parts Built . | . . . Authchips . | . . . Time . | . . . Total Part Build Rating . | . . . Parts Repaired . | . . . Time . | . . . Parts Recycled . | . . . Recycled Matter 12 | . 12 . Retrieved Matter . | . . . Retrieved Components . | . . . Parts Scanalyzed . | . . . Part Schematics Acquired . | . . . Parts Damaged . | . . . Bothacking | -11 -10 -10 ------------ Run | Yrd Mat Min Used RIF Installer . | . . . Robots Hacked . | . . . Non-combat . | . . . Combat . | . . . Robot Hacks Applied . | . . . Relay Couplers Released . | . . . Fabnet Peak Effective % . | . . . Robots Rewired . | . . . Allies Hacked . | . . . Hacks Repelled . | . . . Allies | -11 -10 -10 -------- Run | Yrd Mat Min Total Allies . | . . . Largest Group . | . . . Highest-Rated Group . | . . . Highest-Rated Ally . | . . . Total Orders . | . . . Ally Attacks . | . . . Total Damage . | . . . Kills . | . . . Allies Corrupted . | . . . Allies Melted . | . . . Intel | -11 -10 -10 ------- Run | Yrd Mat Min Active Infowar (turns) 416 | . 416 . Seismic 416 | . 416 . Robot Analysis Total . | . . . Derelict Logs Recovered . | . . . Drone Launches . | . . . Drone Recoveries . | . . . Exploration | -11 -10 -10 ------------- Run | Yrd Mat Min Turns Passed 1781 | 112 1361 308 Spaces Moved 814 | 70 603 141 Core 40 | 17 23 . Treads . | . . . Legs 774 | 53 580 141 Wheels . | . . . Hover . | . . . Flight . | . . . Fastest Speed 50 | 50 120 190 Average Speed 157 | 103 156 190 Slowest Speed 450 | 120 450 190 Overloaded Moves . | . . . Propulsion Burnouts . | . . . Robots Hopped . | . . . Potential Cave-ins . | . . . Cave-ins Triggered . | . . . Exploration Rate (%) 40 | 5 83 34 Regions Visited 2 Branch Regions 1 Pre-discovered Areas . | . . . Known Exits Taken 1 | . 1 . Unknown Exits Taken 1 | 1 . . Scrap Searched . | . . . Spaces Dug 1 | . 1 . Terrain Destroyed 1 | . 1 . Melee 1 | . 1 . Projectile . | . . . AOE . | . . . Terrain Rammed . | . . . Walls Destroyed . | . . . Machines Disabled . | . . . Actions | -11 -10 -10 --------- Run | Yrd Mat Min Total 1103 | 94 846 163 Wait 119 | . 115 4 Move 812 | 69 602 141 Hop . | . . . Pick Up 28 | 11 14 3 Fast Attach 1 | . 1 . Attach 16 | 6 8 2 Detach . | . . . Swap 10 | . 8 2 Drop 6 | . 5 1 Fire 106 | 8 89 9 Melee 4 | . 3 1 Ram . | . . . Kick 1 | . 1 . Crush . | . . . Escape Stasis . | . . . Rewire . | . . . Trap . | . . . Miscellaneous . | . . . Route ------- -11/Scrapyard -10/Materials (discovered 2 exits: *Mat / *Min) -10/Mines History --------- Turn | Location | Event 44 | -11/Scrapyard | Discovered new exit (range 16) 113 | -11/Scrapyard | Entered Materials 284 | -10/Materials | Identified exit to Mines 305 | -10/Materials | Build established: Mutant 519 | -10/Materials | Discovered new exit (range 12) 542 | -10/Materials | Identified exit to Materials 1322 | -10/Materials | Core integrity fell below 50% 1387 | -10/Materials | Lost 5 parts (1p2n2w) 1474 | -10/Materials | Entered Mines 1533 | -10/Mines | Found a hidden stash of uninstalled traps 1721 | -10/Mines | Core integrity fell below 20% 1782 | -10/Mines | Destroyed by Y-45 Defender with Heavy Assault Rifle Last Messages --------------- 01534_ System corrupted: Heat flow error (+293). 01537_ Acquired Stasis Trap. 01538_ Dropped Stasis Trap. 01549_ System corrupted: Energy discharge (-60). 01567_ K-01 Serf collects debris. 01569_ Sneak attack on U-05 Engineer. 01569_ U-05 Engineer destroyed. 01572_ Acquired 10 matter. 01592_ R-06 Scavenger collects Terrain Scan Processor. 01630_ System corrupted: Matter fused (-6). 01661_ K0R8&K&JW0BTCJ2ROKRSME6Y,|ALU8:NI 01681_ System corrupted: Substantial component data lost. 01720_ S-10 Pest destroyed. 01726_ Flight Unit melted. 01726_ S-10 Pest destroyed. 01729_ Acquired 26 matter. 01733_ Acquired Lgt. Assault Rifle. 01763_ Ion Engine destroyed. 01776_ Aluminum Leg destroyed. 01779_ Med. Laser destroyed. Map ----- +----------------------------------------------------+ | | | | | | | | | | | ????????????????????????????????? | | ????????????????????????????????? | | ????????????????????????????????? | | ????????????????????????????????? | | ????????????????????????????????? | | ????????????????????????????????? | | ?????###########????????????????? | | ?????# #????????????????? | | ?????# """ """ #????????????????? | | ?????# """ """ #????????????????? | | ?????# """ """ #???####?????????? | | ?????# * = #?### ##????????? | | ?????######=###### #????????? | | ??????????#%##### #????????? | | ??????????# = ##???????? | | ??????????#### ### #???????? | | ?????????##### #### ##??????? | | ?????????# ## ##?????? | | ???###?### ### ##????? | | ??##!!## #?### ###### | | ??#"!! #@ #???## | | ??# Y #????### ###### | | ??# $Y #??????###????? | | ??#"!! # #?????????????? | | ??##!!## #?????????????? | | ???###?### #?????????????? | | ?????????# #?????????????? | | ?????????####r#####?????????????? | | ???????????? #?????????????????? | | ???????????? #?????????????????? | | ????????????# ?????????????????? | | ?????????????##?????????????????? | | ????????????????????????????????? | | ????????????????????????????????? | | ????????????????????????????????? | | ????????????????????????????????? | | ????????????????????????????????? | | ????????????????????????????????? | | ????????????????????????????????? | | ????????????????????????????????? | | ????????????????????????????????? | | ????????????????????????????????? | | ????????????????????????????????? | | ????????????????????????????????? | | ????????????????????????????????? | +----------------------------------------------------+ Best States ------------- Heat Dissipation 25 Energy Generation 10 Energy Capacity 250 Matter Stores 300 Matter Capacity 300 Sight Range 16 Terrain Scan Density 10 Evasion (%) 55 Item Schematics ----------------- None Robot Schematics ------------------ None Fabricated ------------ Nothing Repaired ---------- Nothing Alien Tech Used ----------------- None Achievements -------------- None Challenges ------------ None Game ------ Seed TargetLayeredLance Manual? 0 Play Time 00:11:17 Cumulative 38.4 hours Start 2025.05.31 @ 22:42:59 End 2025.05.31 @ 22:52:58 Sessions 1 Manual Loads 0 Difficulty Rogue Special Mode None Game No. 61 Rogue 61 Adventurer 0 Explorer 0 Win Type - Total 0 Types 0/0/0/0/0/0/0/0/0/0 Lore% 32 Gallery% 35 Achievement% 29 Wizard Run 0 Options --------- Layout 0 ASCII 0 Keyboard 0 Movement Mouse Keybinds 0 Fullscreen 1 Font 18/SmallcapsGlow Map View 76x50 Zoom Use 0% Tactical HUD 1 Map Filters NONE Filters NONE Steam 1 RUN: 565819e1-a4f1-4668-a2b6-ae3544a2aa00